[Event "25th Troya Open 2017"]
[Site "Canakkale"]
[Date "2017.08.08"]
[Round "3.6"]
[White "Yasin, Hur"]
[Black "Ozsakallioglu, Okan"]
[Result "0-1"]
[ECO "B23"]
[WhiteElo "1982"]
[BlackElo "2010"]
[Annotator "NA RC"]
[PlyCount "78"]
[EventCountry "TUR"]
[SourceTitle "playchess.com"]
[Source "ChessBase"]
[SourceQuality "1"]
[TimeControl "5400+30"]

{[%evp 8,77,7,4,-3,-10,-2,-2,35,5,0,0,12,20,23,13,16,16,20,21,8,-18,11,0,12,-51,-51,-68,-64,-100,-87,-112,-108,-110,32767,32767,32767,-122,32767,32767,32767,32767,32767,32767,32767,32767,32767,32767,32767,-90,-35,32767,32767,-166,-177,-320,-305,-302,32767,32767,32767,32767,32767,32767,-161,-2537,32767,32767,32767,32767,32767,-29997]} 1. e4 {[%emt 0:00:30]} c5 {[%emt 0:01:00]} 2. Nc3 {[%emt 0:00:30]} e6 {[%emt 0:00:30]} 3. f4 {[%emt 0:04:30]} a6 {[%emt 0:01:30]} 4. Nf3 {[%emt 0:01:30]} Nc6 {[%emt 0:00:00]} 5. g3 {[%emt 0:00:30]} d5 {[%emt 0:02:00] LiveBook: 117 Games} 6. d3 {[%emt 0:00:30]} b5 {[%emt 0:01:30] B23: Closed Sicilian: Lines without g3} (6... Nf6 7. Bg2 d4 8. Nb1 Be7 9. O-O O-O 10. h3 b5 11. a4 Rb8 12. axb5 axb5 13. Na3 Qb6 14. Kh2 Rd8 15. Qe1 {1-0 (45) Jones,G (2624)-Tregubov,P (2602) Bastia 2011}) 7. Bg2 {[%emt 0:01:30]} Nf6 {[%emt 0:05:30]} 8. e5 {[%emt 0:01:30]} Nd7 {[%emt 0:03:30]} 9. O-O {[%emt 0:02:30]} g6 {[%emt 0:00:00]} 10. Ne2 {[%emt 0:01:30]} Be7 $146 {[%emt 0:00:00]} ({Find the theoretical novelty and annotate with similar games:} 10... Qb6 11. Be3 a5 12. c3 b4 13. c4 d4 14. Bf2 Bb7 15. g4 h5 {½-½ (44) Horak,M (2325)-Nun,J (2365) Czechia 2000}) 11. c3 {[%emt 0:00:30]} h5 {[%emt 0:02:30]} 12. d4 {[%emt 0:00:30]} a5 {[%emt 0:02:30]} 13. Be3 {[%emt 0:04:30]} Ba6 {[%emt 0:01:30]} 14. h3 {[%emt 0:01:30]} Nb6 {[%emt 0:03:30]} 15. Bf2 {[%emt 0:05:30]} Qd7 {[%emt 0:03:30]} 16. b3 {[%emt 0:07:30]} (16. a3 $11) 16... c4 {[%emt 0:00:30]} 17. Re1 {[%emt 0:08:30]} b4 {[%emt 0:03:30]} 18. Nd2 {[%emt 0:02:30]} Rc8 {[%emt 0:01:30]} 19. Bf1 {[%emt 0:06:30]} Na7 {[%emt 0:00:30]} 20. Rc1 {[%emt 0:08:00]} Nb5 {[%emt 0:05:30]} 21. bxc4 {[%emt 0:02:30]} Nxc4 {[%emt 0:05:30]} 22. Nb3 {[%emt 0:03:30]} Nb2 {[%emt 0:05:30]} 23. Qd2 {[%emt 0:06:30]} Nc4 {[%emt 0:01:30]} 24. Qd3 {[%emt 0:01:30]} a4 {[%emt 0:02:30]} 25. Nc5 {[%emt 0:00:30]} Bxc5 {[%emt 0:00:30]} 26. dxc5 {[%emt 0:00:30]} b3 {[%emt 0:00:00]} 27. axb3 {[%emt 0:00:30]} axb3 {[%emt 0:00:00]} 28. Ra1 {[%emt 0:01:30]} (28. Rb1 $11) 28... Bb7 {[%emt 0:01:30]} 29. Nd4 {[%emt 0:01:30]} b2 {[%emt 0:00:30]} 30. Ra2 {[%emt 0:04:30]} Nba3 {[%emt 0:00:30]} 31. g4 $2 {[%emt 0:02:30]} (31. Rb1) 31... hxg4 {[%emt 0:00:30]} 32. hxg4 {[%emt 0:00:30]} Bc6 {[%emt 0:02:30]} 33. f5 {[%emt 0:05:30]} gxf5 {[%emt 0:00:30]} 34. gxf5 {[%emt 0:00:00]} Rg8+ {[%emt 0:00:30]} 35. Kh2 {[%emt 0:02:00] [#]} Nxe5 $19 {[%emt 0:08:30]} 36. Rxa3 $2 {[%emt 0:00:30]} (36. fxe6 fxe6 37. Rxe5) 36... Nxd3 {[%emt 0:00:30]} 37. Bxd3 {[%emt 0:00:00]} Qc7+ {[%emt 0:00:00]} 38. Kh1 {[%emt 0:04:52]} Qf4 {[%emt 0:00:00]} 39. Bg1 {[%emt 0:04:47]} Qg3 {[%emt 0:00:00]} 0-1

[Event "25th Troya Open 2017"]
[Site "Canakkale"]
[Date "2017.08.08"]
[Round "3.7"]
[White "Maden, Mirac Kerem"]
[Black "Albayrak, Kerem"]
[Result "1-0"]
[ECO "E97"]
[WhiteElo "2014"]
[BlackElo "1833"]
[Annotator "NA"]
[PlyCount "58"]
[EventCountry "TUR"]
[SourceTitle "playchess.com"]
[Source "ChessBase"]
[SourceQuality "1"]
[TimeControl "5400+30"]

1. d4 {[%emt 0:00:30]} Nf6 {[%emt 0:01:00]} 2. Nf3 {[%emt 0:00:30]} g6 {[%emt 0:00:30]} 3. c4 {[%emt 0:00:30]} Bg7 {[%emt 0:00:30]} 4. Nc3 {[%emt 0:00:30]} O-O {[%emt 0:00:30]} 5. e4 {[%emt 0:00:30]} d6 {[%emt 0:00:30]} 6. Be2 {[%emt 0:00:30]} e5 {[%emt 0:00:30]} 7. O-O {[%emt 0:00:30]} Nc6 {[%emt 0:00:30]} 8. d5 {[%emt 0:00:30]} Ne7 {[%emt 0:00:30]} 9. b4 {[%emt 0:00:30]} a5 {[%emt 0:00:30]} 10. Ba3 {[%emt 0:00:30]} axb4 {[%emt 0:00:30]} 11. Bxb4 {[%emt 0:00:30]} b6 {[%emt 0:00:30]} 12. a4 {[%emt 0:00:30]} Re8 {[%emt 0:00:00]} 13. Qc2 {[%emt 0:00:00] E97: King's Indian: Classical Main Line (6...e5 7 0-0 Nc6): 8 Be3 and 8 d5 Ne7, not 9 Ne1} (13. Re1 Bf8 14. Nd2 c5 15. Ba3 Bg7 16. Bb2 Rf8 17. Nb5 Ne8 18. Bc3 f5 19. Ra3 Bh6 20. Bd3 Nf6 21. f3 fxe4 22. fxe4 Ng4 23. Nf1 g5 24. Ra2 Ng6 25. Ng3 Nf4 26. Bb1 Nxh2 27. Nxd6 g4 {½-½ (27) Aleksandrov,A (2565)-Fedorov,A (2576) Minsk 2017}) 13... c5 {[%emt 0:02:00]} 14. dxc6 {[%emt 0:06:00]} Nxc6 {[%emt 0:00:00]} 15. Ba3 {[%emt 0:06:30]} Nd4 {[%emt 0:08:00]} 16. Qd3 {[%emt 0:07:30]} Bb7 {[%emt 0:23:30]} 17. Rfe1 $146 {[%emt 0:14:30]} ({Predecessor:} 17. Nd2 Bc6 18. Bd1 Qd7 19. Nb5 Bxb5 20. axb5 Qb7 {0-1 (32) Papakonstantinou,D-Gouloutis,N (1590) Kallithea 2009}) 17... Nxe4 {[%emt 0:09:30]} ({Better is} 17... Nh5 $11) 18. Nxe4 {[%emt 0:02:30]} f5 {[%emt 0:05:30]} 19. Nxd6 {[%emt 0:02:30]} e4 {[%emt 0:00:30]} 20. Qxd4 $1 {[%emt 0:00:30]} Bxd4 {[%emt 0:02:30]} 21. Nxd4 {[%emt 0:00:30]} f4 {[%emt 0:25:53]} 22. c5 $18 {[%emt 0:02:30]} ({Weaker is} 22. Nxe8 Qxd4 23. Rad1 Qe5 $18) 22... Bd5 {[%emt 0:08:58]} 23. Nxe8 {[%emt 0:01:30]} Qxe8 {[%emt 0:00:03]} 24. Bb5 {[%emt 0:00:30]} Qe5 {[%emt 0:01:16]} 25. Nc6 {[%emt 0:03:30]} Qg5 {[%emt 0:05:54]} 26. cxb6 {[%emt 0:00:30]} f3 {[%emt 0:00:51]} 27. g3 {[%emt 0:00:30]} Re8 {[%emt 0:02:21]} 28. b7 {[%emt 0:02:30]} Bxc6 {[%emt 0:01:11]} 29. Bxc6 {[%emt 0:00:30]} Qf6 {[%emt 0:00:32]} 1-0

[Event "25th Troya Open 2017"]
[Site "Canakkale"]
[Date "2017.08.08"]
[Round "3.8"]
[White "Sevgi, Volkan"]
[Black "Erencek, Ali Ediz"]
[Result "1-0"]
[ECO "B23"]
[WhiteElo "2213"]
[BlackElo "1934"]
[Annotator "ChessBase"]
[PlyCount "63"]
[EventCountry "TUR"]
[SourceTitle "playchess.com"]
[Source "ChessBase"]
[SourceQuality "1"]
[TimeControl "5400+30"]

1. e4 {[%emt 0:00:30]} c5 {[%emt 0:01:00]} 2. Nc3 {[%emt 0:00:30]} a6 {[%emt 0:00:30]} 3. g4 {[%emt 0:00:30]} b5 {[%emt 0:00:30]} 4. Bg2 {[%emt 0:00:30]} Bb7 {[%emt 0:00:30]} 5. d3 {[%emt 0:00:00]} e6 {[%emt 0:02:30]} 6. Nh3 {[%emt 0:00:00]} h5 {[%emt 0:06:30]} 7. g5 {[%emt 0:00:30]} g6 {[%emt 0:01:30]} 8. Be3 {[%emt 0:06:30]} b4 {[%emt 0:05:30]} 9. Ne2 {[%emt 0:01:30]} e5 {[%emt 0:02:30]} 10. f4 {[%emt 0:02:30]} d6 {[%emt 0:03:30]} 11. O-O {[%emt 0:02:30]} Nd7 {[%emt 0:01:30]} 12. c3 {[%emt 0:01:30]} a5 {[%emt 0:02:30]} 13. f5 {[%emt 0:01:30]} gxf5 {[%emt 0:02:30]} 14. Rxf5 {[%emt 0:00:30]} Ne7 {[%emt 0:00:30]} 15. Rf2 {[%emt 0:00:30]} h4 {[%emt 0:02:30]} 16. cxb4 {[%emt 0:00:30]} axb4 {[%emt 0:00:30]} 17. Qb3 {[%emt 0:00:30]} Rh7 {[%emt 0:02:30]} 18. g6 {[%emt 0:00:30]} Nxg6 {[%emt 0:06:30]} 19. Ng5 {[%emt 0:00:00]} Rg7 {[%emt 0:06:30]} 20. Nxf7 {[%emt 0:01:00]} Qc7 {[%emt 0:05:30]} 21. Qe6+ {[%emt 0:02:30]} Be7 {[%emt 0:01:30]} 22. Bh6 {[%emt 0:04:30]} Ngf8 {[%emt 0:05:30]} 23. Qf5 {[%emt 0:04:30]} Rg6 {[%emt 0:02:30]} 24. Kh1 {[%emt 0:12:30]} Bf6 {[%emt 0:01:30]} 25. Bf3 {[%emt 0:05:30]} Kxf7 {[%emt 0:03:30]} 26. Bh5 {[%emt 0:00:30]} c4 {[%emt 0:02:30]} 27. Rg1 {[%emt 0:04:30]} cxd3 {[%emt 0:01:30]} 28. Rxg6 {[%emt 0:00:30]} Ke7 {[%emt 0:02:30]} 29. Rxf6 {[%emt 0:03:30]} Qc6 {[%emt 0:03:30]} 30. Qg5 {[%emt 0:04:30]} Nxf6 {[%emt 0:03:30]} 31. Qxf6+ {[%emt 0:00:30]} Kd7 {[%emt 0:00:30]} 32. Qg7+ {[%emt 0:00:00]} 1-0

[Event "25th Troya Open 2017"]
[Site "Canakkale"]
[Date "2017.08.08"]
[Round "3.9"]
[White "Cakin, Ahmet Burak"]
[Black "Aslan, Lina"]
[Result "1-0"]
[ECO "A36"]
[WhiteElo "1653"]
[BlackElo "1524"]
[Annotator "NA RC"]
[PlyCount "131"]
[EventCountry "TUR"]
[SourceTitle "playchess.com"]
[Source "ChessBase"]
[SourceQuality "1"]
[TimeControl "5400+30"]

1. c4 {[%emt 0:00:30]} c5 {[%emt 0:01:00]} 2. Nc3 {[%emt 0:00:30]} Nc6 {[%emt 0:00:30]} 3. g3 {[%emt 0:01:30]} g6 {[%emt 0:01:30]} 4. Bg2 {[%emt 0:00:00]} Bg7 {[%emt 0:00:30]} 5. e3 {[%emt 0:03:00]} Nf6 {[%emt 0:07:30]} 6. Nge2 {[%emt 0:00:30]} d6 {[%emt 0:01:30]} 7. O-O {[%emt 0:01:30]} O-O {[%emt 0:00:30]} 8. b3 {[%emt 0:03:30]} a6 {[%emt 0:04:30]} 9. h3 {[%emt 0:02:30]} Rb8 {[%emt 0:08:30]} 10. d4 {[%emt 0:12:30]} Bd7 {[%emt 0:17:30]} 11. dxc5 {[%emt 0:24:30]} dxc5 {[%emt 0:01:30]} 12. e4 {[%emt 0:04:30]} b5 {[%emt 0:18:30]} 13. Be3 {[%emt 0:17:30]} bxc4 {[%emt 0:12:30]} 14. bxc4 {[%emt 0:00:30]} Ne5 {[%emt 0:00:30]} 15. Bxc5 {[%emt 0:06:38]} Nxc4 {[%emt 0:01:30]} 16. Qd3 {[%emt 0:02:39]} Ne5 {[%emt 0:08:09]} 17. Qxa6 {[%emt 0:02:14]} Re8 {[%emt 0:05:34]} 18. f4 {[%emt 0:06:56]} Qc7 {[%emt 0:02:51]} 19. Bf2 {[%emt 0:04:59]} Bc8 {[%emt 0:03:22]} 20. Qa7 {[%emt 0:01:31]} Rb7 {[%emt 0:00:47]} 21. Qc5 {[%emt 0:01:21]} Nd3 {[%emt 0:00:52]} 22. Qxc7 {[%emt 0:00:34]} Rxc7 {[%emt 0:00:02]} 23. Be3 {[%emt 0:00:49]} Nxe4 {[%emt 0:01:03]} 24. Nxe4 {[%emt 0:00:34]} Bxa1 {[%emt 0:00:37]} 25. Rxa1 {[%emt 0:00:01]} Be6 {[%emt 0:00:18]} 26. a4 {[%emt 0:01:08]} Bc4 {[%emt 0:01:12]} 27. Nd4 {[%emt 0:00:33]} Nb4 {[%emt 0:00:32]} 28. Bd2 {[%emt 0:00:30]} Na6 {[%emt 0:00:27]} 29. a5 {[%emt 0:00:27]} Rd8 {[%emt 0:00:17]} 30. Be3 {[%emt 0:00:14]} f5 {[%emt 0:00:53]} 31. Nd2 {[%emt 0:00:41]} Bd5 {[%emt 0:00:18]} 32. Bf1 {[%emt 0:00:34]} Nc5 {[%emt 0:00:38]} 33. a6 {[%emt 0:00:34]} Ra8 {[%emt 0:00:18]} 34. Nb5 {[%emt 0:00:33]} Rcc8 {[%emt 0:00:36]} 35. a7 {[%emt 0:00:18]} Ne4 {[%emt 0:00:36]} 36. Nxe4 {[%emt 0:00:30]} fxe4 {[%emt 0:00:11]} 37. g4 {[%emt 0:00:39]} Bc4 {[%emt 0:00:22]} 38. Bxc4+ {[%emt 0:00:51]} Rxc4 {[%emt 0:00:01]} 39. Rc1 {[%emt 0:00:03]} Rb4 {[%emt 0:00:48]} 40. Nc7 {[%emt 0:00:23]} Rxa7 {[%emt 0:00:43]} 41. Bxa7 {[%emt 0:00:14]} Rb3 {[%emt 0:00:15]} 42. Nd5 {[%emt 0:00:38]} Rxh3 {[%emt 0:00:25]} 43. Kg2 {[%emt 0:00:25]} Rd3 {[%emt 0:00:40]} 44. Ne3 {[%emt 0:00:53]} Rd2+ {[%emt 0:00:54]} 45. Kg3 {[%emt 0:00:10]} Ra2 {[%emt 0:00:35]} 46. Bc5 {[%emt 0:00:14]} Kf7 {[%emt 0:00:11]} 47. Rc4 {[%emt 0:00:28]} Ra5 {[%emt 0:00:20]} 48. Bb4 {[%emt 0:00:09]} Ra7 {[%emt 0:00:58]} 49. Rxe4 {[%emt 0:00:07]} e6 {[%emt 0:00:16]} 50. Nc2 {[%emt 0:01:24]} Rb7 {[%emt 0:00:41]} 51. Rc4 {[%emt 0:00:52]} Rd7 {[%emt 0:00:47]} 52. Rd4 {[%emt 0:00:21]} Rb7 {[%emt 0:00:16]} 53. Ne1 {[%emt 0:00:27]} Rc7 {[%emt 0:00:40]} 54. Nd3 {[%emt 0:00:12]} Rb7 {[%emt 0:00:27]} 55. Nc5 {[%emt 0:00:52]} Rc7 {[%emt 0:00:16]} 56. Rd7+ {[%emt 0:00:22]} Rxd7 {[%emt 0:00:38]} 57. Nxd7 {[%emt 0:00:00]} Kg7 {[%emt 0:00:00]} 58. Kf3 {[%emt 0:00:40]} Kf7 {[%emt 0:00:00]} 59. Ke4 {[%emt 0:00:13]} Kg7 {[%emt 0:00:55]} 60. Ke5 {[%emt 0:00:45]} Kf7 {[%emt 0:00:05]} 61. g5 {[%emt 0:00:00]} Kg7 {[%emt 0:00:19]} 62. Kxe6 {[%emt 0:00:43]} Kg8 {[%emt 0:00:30]} 63. Kf6 {[%emt 0:00:30]} Kh8 {[%emt 0:00:00]} 64. Kf7 {[%emt 0:01:01]} h5 {[%emt 0:00:21]} 65. Nf8 {[%emt 0:00:08]} h4 {[%emt 0:00:18]} 66. Bc3# {[%emt 0:00:38]} 1-0

[Event "25th Troya Open 2017"]
[Site "Canakkale"]
[Date "2017.08.08"]
[Round "3.10"]
[White "Bayindir, Kuzey"]
[Black "Pekdemir, Veysel"]
[Result "1-0"]
[ECO "A50"]
[WhiteElo "1669"]
[BlackElo "1589"]
[Annotator "NA RC"]
[PlyCount "83"]
[EventCountry "TUR"]
[SourceTitle "playchess.com"]
[Source "ChessBase"]
[SourceQuality "1"]
[TimeControl "5400+30"]

1. d4 {[%emt 0:00:30]} Nf6 {[%emt 0:01:00]} 2. c4 {[%emt 0:00:30]} e6 {[%emt 0:00:30]} 3. Nc3 {[%emt 0:00:30]} b6 {[%emt 0:00:30]} 4. e4 {[%emt 0:02:30]} Bb4 {[%emt 0:07:30]} 5. f3 {[%emt 0:00:30]} h6 {[%emt 0:12:30]} 6. Be3 {[%emt 0:00:30]} Bb7 {[%emt 0:01:30]} 7. Nge2 {[%emt 0:01:30]} d5 {[%emt 0:04:30]} 8. cxd5 {[%emt 0:00:00]} exd5 {[%emt 0:00:30]} 9. Qa4+ {[%emt 0:01:00]} Nc6 {[%emt 0:00:30]} 10. e5 {[%emt 0:00:30]} Nh7 {[%emt 0:01:30]} 11. a3 {[%emt 0:00:30]} Bxc3+ {[%emt 0:01:30]} 12. Nxc3 {[%emt 0:00:30]} O-O {[%emt 0:00:30]} 13. Bd3 {[%emt 0:05:30]} Re8 {[%emt 0:02:30]} 14. O-O {[%emt 0:02:30]} f6 {[%emt 0:04:30]} 15. f4 {[%emt 0:04:30]} Na5 {[%emt 0:01:30]} 16. Rad1 {[%emt 0:03:30]} Rc8 {[%emt 0:05:30]} 17. Qc2 {[%emt 0:00:30]} Nf8 {[%emt 0:00:30]} 18. b4 {[%emt 0:00:30]} Nc4 {[%emt 0:00:30]} 19. Nxd5 {[%emt 0:04:30]} Nxa3 {[%emt 0:02:30]} 20. Nxf6+ {[%emt 0:00:00]} gxf6 {[%emt 0:01:30]} 21. Qa2+ {[%emt 0:00:00]} Qd5 {[%emt 0:00:30]} 22. Ra1 {[%emt 0:00:00]} c5 {[%emt 0:10:30]} 23. bxc5 {[%emt 0:02:00]} Qxa2 {[%emt 0:02:30]} 24. Rxa2 {[%emt 0:00:00]} bxc5 {[%emt 0:00:30]} 25. Rxa3 {[%emt 0:00:00]} cxd4 {[%emt 0:01:30]} 26. Bxd4 {[%emt 0:00:30]} Red8 {[%emt 0:01:30]} 27. Bxa7 {[%emt 0:00:30]} Ra8 {[%emt 0:02:30]} 28. Bc4+ {[%emt 0:00:30]} Kg7 {[%emt 0:00:00]} 29. Rg3+ {[%emt 0:00:30]} Kh7 {[%emt 0:01:00]} 30. Bb6 {[%emt 0:00:30]} Rd2 {[%emt 0:00:30]} 31. exf6 {[%emt 0:00:30]} Ng6 {[%emt 0:00:30]} 32. Bd3 {[%emt 0:00:30]} Rxd3 {[%emt 0:03:30]} 33. Rxd3 {[%emt 0:01:30]} Be4 {[%emt 0:00:30]} 34. Rd7+ {[%emt 0:00:30]} Kh8 {[%emt 0:00:30]} 35. Bd4 {[%emt 0:00:00]} Nf8 {[%emt 0:00:30]} 36. Re7 {[%emt 0:01:00]} Bd5 {[%emt 0:00:30]} 37. Ra1 {[%emt 0:01:30]} Rc8 {[%emt 0:00:30]} 38. Raa7 {[%emt 0:01:30]} Ne6 {[%emt 0:06:30]} 39. Rh7+ {[%emt 0:00:30]} Kg8 {[%emt 0:00:30]} 40. f7+ {[%emt 0:00:30]} Kxh7 {[%emt 0:00:30]} 41. f8=Q+ {[%emt 0:00:00]} Rc7 {[%emt 0:00:30]} 42. Rxc7+ {[%emt 0:00:00]} 1-0

[Event "25th Troya Open 2017"]
[Site "Canakkale"]
[Date "2017.08.08"]
[Round "3.11"]
[White "Esti, Kubra Selenay"]
[Black "Demirtas, Hafize"]
[Result "0-1"]
[ECO "A00"]
[WhiteElo "1551"]
[BlackElo "1708"]
[Annotator "NA RC"]
[PlyCount "146"]
[EventCountry "TUR"]
[SourceTitle "playchess.com"]
[Source "ChessBase"]
[SourceQuality "1"]
[TimeControl "5400+30"]

1. Nf3 {[%emt 0:00:30]} d5 {[%emt 0:01:00]} 2. g3 {[%emt 0:00:30]} Nf6 {[%emt 0:00:30]} 3. Bg2 {[%emt 0:00:30]} Nbd7 {[%emt 0:01:30]} 4. O-O {[%emt 0:01:30]} e5 {[%emt 0:05:30]} 5. d3 {[%emt 0:01:30]} Bd6 {[%emt 0:00:30]} 6. Nc3 {[%emt 0:03:30]} c6 {[%emt 0:00:30]} 7. Bg5 {[%emt 0:03:30]} O-O {[%emt 0:00:30]} 8. e4 {[%emt 0:03:30]} d4 {[%emt 0:04:30]} 9. Ne2 {[%emt 0:02:30]} Qb6 {[%emt 0:03:30]} 10. Bxf6 {[%emt 0:04:30]} Nxf6 {[%emt 0:04:30]} 11. Qc1 {[%emt 0:05:30]} Re8 {[%emt 0:00:30]} 12. Nh4 {[%emt 0:02:30]} Ng4 {[%emt 0:05:30]} 13. h3 {[%emt 0:09:30]} Nh6 {[%emt 0:01:30]} 14. g4 {[%emt 0:01:30]} f6 {[%emt 0:01:30]} 15. Ng3 {[%emt 0:09:30]} Bd7 {[%emt 0:01:30]} 16. Nh5 {[%emt 0:04:30]} Nf7 {[%emt 0:03:30]} 17. Nf5 {[%emt 0:05:30]} Bf8 {[%emt 0:01:30]} 18. Bf3 {[%emt 0:02:30]} c5 {[%emt 0:00:30]} 19. Nhg3 {[%emt 0:05:30]} g6 {[%emt 0:05:30]} 20. Nh4 {[%emt 0:00:30]} Bh6 {[%emt 0:00:30]} 21. Qb1 {[%emt 0:03:30]} Qd8 {[%emt 0:01:30]} 22. Be2 {[%emt 0:08:37]} f5 {[%emt 0:03:30]} 23. Ng2 {[%emt 0:00:38]} f4 {[%emt 0:02:30]} 24. Nh1 {[%emt 0:00:17]} Ng5 {[%emt 0:01:30]} 25. f3 {[%emt 0:01:14]} Nxh3+ {[%emt 0:05:30]} 26. Kh2 {[%emt 0:00:03]} Ng5 {[%emt 0:00:30]} 27. Nf2 {[%emt 0:00:11]} Nf7 {[%emt 0:03:30]} 28. Rh1 {[%emt 0:00:49]} Bg5 {[%emt 0:00:30]} 29. Kg1 {[%emt 0:00:22]} Rc8 {[%emt 0:00:30]} 30. a4 {[%emt 0:03:31]} Be6 {[%emt 0:06:30]} 31. Kf1 {[%emt 0:03:13]} Qa5 {[%emt 0:00:30]} 32. Qe1 {[%emt 0:01:04]} Qb6 {[%emt 0:00:30]} 33. b3 {[%emt 0:01:45]} Qc7 {[%emt 0:04:30]} 34. Nd1 {[%emt 0:02:53]} a6 {[%emt 0:02:30]} 35. Nb2 {[%emt 0:02:04]} Bd8 {[%emt 0:00:30]} 36. Kf2 {[%emt 0:03:28]} b5 {[%emt 0:01:30]} 37. axb5 {[%emt 0:00:49]} axb5 {[%emt 0:00:30]} 38. Ra6 {[%emt 0:00:31]} Nd6 {[%emt 0:02:30]} 39. Qa1 {[%emt 0:01:22]} Re7 {[%emt 0:00:30]} 40. Qa3 {[%emt 0:01:13]} Rb8 {[%emt 0:01:30]} 41. Ra1 {[%emt 0:00:54]} Rb7 {[%emt 0:03:30]} 42. Kf1 {[%emt 0:01:38]} Nc8 {[%emt 0:00:30]} 43. Kf2 {[%emt 0:00:29]} Bd7 {[%emt 0:02:30]} 44. Qa2 {[%emt 0:00:39]} Kg7 {[%emt 0:00:38]} 45. Kg1 {[%emt 0:01:24]} Re6 {[%emt 0:01:06]} 46. Rxe6 {[%emt 0:01:07]} Bxe6 {[%emt 0:00:01]} 47. Kf2 {[%emt 0:00:00]} Nd6 {[%emt 0:01:34]} 48. Kf1 {[%emt 0:00:34]} Nc8 {[%emt 0:03:20]} 49. Kf2 {[%emt 0:00:05]} Ra7 {[%emt 0:00:47]} 50. Qb1 {[%emt 0:00:04]} Nb6 {[%emt 0:00:22]} 51. Qf1 {[%emt 0:01:12]} Be7 {[%emt 0:01:33]} 52. Kg1 {[%emt 0:00:37]} Rxa1 {[%emt 0:00:55]} 53. Qxa1 {[%emt 0:00:30]} c4 {[%emt 0:00:30]} 54. bxc4 {[%emt 0:00:30]} bxc4 {[%emt 0:00:30]} 55. Qa6 {[%emt 0:00:30]} Bc8 {[%emt 0:00:30]} 56. Qa5 {[%emt 0:00:30]} Qc5 {[%emt 0:00:30]} 57. Qa7 {[%emt 0:00:30]} Kf8 {[%emt 0:00:30]} 58. Kf1 {[%emt 0:00:30]} c3 {[%emt 0:00:30]} 59. Na4 {[%emt 0:00:30]} Nxa4 {[%emt 0:00:30]} 60. Qxa4 {[%emt 0:00:30]} Qb4 {[%emt 0:00:30]} 61. Qc6 {[%emt 0:00:30]} Qb7 {[%emt 0:00:30]} 62. Qc4 {[%emt 0:00:30]} Bd7 {[%emt 0:00:30]} 63. Qa2 {[%emt 0:00:30]} Kg7 {[%emt 0:00:30]} 64. Kf2 {[%emt 0:00:30]} h6 {[%emt 0:00:30]} 65. Qa1 {[%emt 0:00:30]} Be6 {[%emt 0:00:30]} 66. Qa5 {[%emt 0:00:30]} Kf6 {[%emt 0:00:30]} 67. Nh4 {[%emt 0:00:30]} Kf7 {[%emt 0:00:30]} 68. Ng2 {[%emt 0:00:30]} Bf6 {[%emt 0:00:30]} 69. Qc5 {[%emt 0:00:30]} Qe7 {[%emt 0:00:30]} 70. Qb5 {[%emt 0:00:30]} Kg7 {[%emt 0:05:36]} 71. Qa5 {[%emt 0:00:19]} Bd7 {[%emt 0:00:14]} 72. Qa7 {[%emt 0:00:32]} h5 {[%emt 0:00:00]} 73. gxh5 {[%emt 0:01:04]} gxh5 {[%emt 0:00:12]} 0-1

[Event "25th Troya Open 2017"]
[Site "Canakkale"]
[Date "2017.08.08"]
[Round "3.12"]
[White "Daloglu, Berkay"]
[Black "Hayrat, Mehmet Emir"]
[Result "1/2-1/2"]
[ECO "B40"]
[WhiteElo "1688"]
[BlackElo "1536"]
[Annotator "NA"]
[PlyCount "78"]
[EventCountry "TUR"]
[SourceTitle "playchess.com"]
[Source "ChessBase"]
[SourceQuality "1"]
[TimeControl "5400+30"]

1. e4 {[%emt 0:00:30]} e6 {[%emt 0:01:00]} 2. d3 {[%emt 0:00:30]} d5 {[%emt 0:00:30]} 3. Nd2 {[%emt 0:00:30]} c5 {[%emt 0:01:30]} 4. Ngf3 {[%emt 0:02:30]} Nc6 {[%emt 0:01:30]} 5. g3 {[%emt 0:00:30]} g6 {[%emt 0:01:30]} 6. Bg2 {[%emt 0:01:30]} Bg7 {[%emt 0:00:00]} 7. O-O {[%emt 0:00:30]} d4 {[%emt 0:01:00]} 8. Re1 {[%emt 0:05:30]} e5 {[%emt 0:04:30]} 9. Nb3 {[%emt 0:01:30]} b6 {[%emt 0:02:30]} 10. c3 {[%emt 0:01:30]} Nge7 {[%emt 0:01:30]} 11. cxd4 {[%emt 0:00:30]} cxd4 {[%emt 0:01:30]} 12. Nh4 {[%emt 0:12:30]} O-O {[%emt 0:04:30]} 13. f4 {[%emt 0:00:30]} f6 {[%emt 0:06:30]} 14. Nf3 {[%emt 0:15:30]} Bd7 {[%emt 0:04:30]} 15. Bd2 {[%emt 0:16:30]} Rc8 {[%emt 0:06:30]} 16. Rc1 {[%emt 0:00:00]} Be6 {[%emt 0:06:30]} 17. fxe5 {[%emt 0:07:00]} fxe5 {[%emt 0:00:30]} 18. Ng5 {[%emt 0:01:30]} Bd7 {[%emt 0:04:30]} 19. Na1 {[%emt 0:04:30]} h6 {[%emt 0:05:30]} 20. Qb3+ {[%emt 0:00:30]} Kh8 {[%emt 0:01:30]} 21. Nf7+ {[%emt 0:00:30]} Rxf7 {[%emt 0:00:30]} 22. Qxf7 {[%emt 0:00:00]} Be8 {[%emt 0:00:30]} 23. Qb3 {[%emt 0:01:00]} g5 {[%emt 0:00:30]} 24. Bh3 {[%emt 0:01:30]} Rb8 {[%emt 0:01:30]} 25. Nc2 {[%emt 0:01:30]} Ng6 {[%emt 0:01:30]} 26. Nb4 {[%emt 0:00:30]} Nxb4 {[%emt 0:01:30]} 27. Bxb4 {[%emt 0:00:30]} Bd7 {[%emt 0:00:30]} 28. Bxd7 {[%emt 0:01:30]} Qxd7 {[%emt 0:00:30]} 29. Rf1 {[%emt 0:01:30]} Qh3 {[%emt 0:00:30]} 30. Qf7 {[%emt 0:01:30]} Kh7 {[%emt 0:01:30]} 31. Rc7 {[%emt 0:02:14]} Rg8 {[%emt 0:00:00]} 32. Rxa7 {[%emt 0:02:06]} h5 {[%emt 0:01:00]} 33. Rf6 {[%emt 0:00:35]} Nf4 {[%emt 0:00:30]} 34. gxf4 {[%emt 0:06:03]} Qe3+ {[%emt 0:13:30]} 35. Kf1 {[%emt 0:02:49]} Qxd3+ {[%emt 0:01:30]} 36. Ke1 {[%emt 0:00:38]} Qxe4+ {[%emt 0:05:30]} 37. Kd2 {[%emt 0:06:22]} Qe3+ {[%emt 0:00:30]} 38. Kd1 {[%emt 0:00:35]} Qf3+ {[%emt 0:00:36]} 39. Ke1 {[%emt 0:03:19]} Qe4+ {[%emt 0:00:30]} 1/2-1/2